fUSD/lending_fUSD_20240822
["ID","MTS","AMOUNT","RATE_DAILY","PERIOD"]
[335599422,1724357440176,-500.0,0.00010999,2]
[335599423,1724357440185,-500.0,0.00010999,2]
[335599424,1724357440194,-538.3,0.00010999,2]
[335599425,1724357440203,-2503.88795156,0.00010999,2]
[335599426,1724357440216,-820.5999,0.00010999,2]
[335599427,1724357440228,-957.79744178,0.00010999,2]
[335599428,1724357440239,-1566.64134619,0.00010999,2]
[335599429,1724357440316,-155.0,0.00010899,2]
[335599430,1724357440325,-70.37904312,0.00010999,2]
[335599431,1724357440335,-500.0,0.00010999,2]
[335599432,1724357440345,-500.0,0.00010999,2]
[335599433,1724357440354,-500.0,0.00010999,2]
[335599434,1724357440363,-274.62095688,0.00010999,2]
[335599435,1724357440375,-225.37904312,0.00010999,2]
[335599436,1724357440384,-42.82095688,0.00010999,2]
[335599437,1724357440407,-457.17904312,0.00010999,2]
[335599438,1724357440417,-500.0,0.00010999,2]
[335599439,1724357440426,-500.0,0.00010999,2]
[335599440,1724357440436,-500.0,0.00010999,2]
[335599441,1724357440445,-450.66681784,0.00010999,2]
[335599442,1724357440455,-500.0,0.00010999,2]
[335599443,1724357440464,-500.0,0.00010999,2]
[335599444,1724357440474,-500.0,0.00010999,2]
[335599445,1724357440484,-500.0,0.00010999,2]
[335599446,1724357440493,-500.0,0.00010999,2]
[335599447,1724357440502,-500.0,0.00010999,2]
[335599448,1724357440512,-500.0,0.00010999,2]
[335599449,1724357440521,-500.0,0.00010999,2]
[335599450,1724357440530,-500.0,0.00010999,2]
[335599451,1724357440539,-188.85,0.00010999,2]
[335599452,1724357440548,-500.0,0.00010999,2]
[335599453,1724357440558,-554.40554151,0.00010999,2]
[335599454,1724357440567,-500.0,0.00010999,2]
[335599455,1724357440577,-609.58,0.00010999,2]
[335599456,1724357440586,-500.0,0.00010999,2]
[335599457,1724357440596,-500.0,0.00010999,2]
[335599458,1724357440605,-500.0,0.00010999,2]
[335599459,1724357440614,-500.0,0.00010999,2]
[335599460,1724357440624,-500.0,0.00010999,2]
[335599461,1724357440633,-500.0,0.00010999,2]
[335599462,1724357440642,-500.0,0.00010999,2]
[335599463,1724357440651,-500.0,0.00010999,2]
[335599464,1724357440661,-500.0,0.00010999,2]
[335599465,1724357440670,-500.0,0.00010999,2]
[335599466,1724357440679,-300.68631039,0.00010999,2]
[335599467,1724357440688,-500.0,0.00010999,2]
[335599468,1724357440697,-500.0,0.00010999,2]
[335599469,1724357440706,-500.0,0.00010999,2]
[335599470,1724357440715,-500.0,0.00010999,2]
[335599471,1724357440723,-10149.89,0.00010999,2]
[335599472,1724357440732,-500.0,0.00010999,2]
[335599473,1724357440744,-10149.89,0.00010999,2]
[335599474,1724357440754,-500.0,0.00010999,2]
[335599475,1724357440763,-10149.89,0.00010999,2]
[335599476,1724357440773,-500.0,0.00010999,2]
[335599477,1724357440783,-500.0,0.00010999,2]
[335599478,1724357440793,-10149.89,0.00010999,2]
[335599479,1724357440803,-162.0,0.00010999,2]
[335599480,1724357440812,-10149.89,0.00010999,2]
[335599481,1724357440824,-2318.9233489,0.00010999,2]
[335599523,1724357443177,-7830.9666511,0.00010999,2]
[335599524,1724357443187,-10149.89,0.00010999,2]
[335599525,1724357443197,-2734.3433489,0.00010999,2]
[335599545,1724357445818,-519.2,0.00010904,2]
[335599546,1724357445828,-7415.5466511,0.00010999,2]
[335599547,1724357445837,-10149.89,0.00010999,2]
[335599548,1724357445846,-10149.89,0.00010999,2]
[335599549,1724357445856,-10149.89,0.00010999,2]
[335599550,1724357445865,-2613.54225161,0.00010999,2]
[335599551,1724357448913,203.24103,9.909e-05,2]
[335599552,1724357499562,246.29,9.9e-05,2]
[335599554,1724357525620,552.1151,9.997e-05,2]
[335599555,1724357532811,280.2,0.0001,2]
[335599556,1724357601156,273.56,9.994e-05,2]
[335599557,1724357614683,193.84,8.219e-05,2]
[335599558,1724357670178,3569.13124254,0.0001,2]
[335599559,1724357747339,328.0,9.936e-05,2]
[335599560,1724357865931,172.87,9.927e-05,2]
[335599561,1724357988305,11205.58254513,9.927e-05,2]
[335599562,1724358096893,1269.9153111,9.927e-05,2]
[335599563,1724358099582,184.14,8.219e-05,2]
[335599564,1724358128094,246.29,9.923e-05,2]
[335599565,1724358129376,1178.07631461,9.997e-05,2]
[335599566,1724358133541,1975.9,9.998e-05,2]
[335599567,1724358134250,273.6,9.923e-05,2]
[335599568,1724358154420,197.9462959,9.962e-05,2]
[335599569,1724358159215,155.0,9.962e-05,2]
[335599570,1724358160323,6178.99480044,9.962e-05,2]
[335599571,1724358187903,155.0,0.00010009,2]
[335599572,1724358201478,155.45,8.219e-05,2]
[335599573,1724358260165,155.0,9.962e-05,2]
[335599574,1724358265985,949.54206571,9.962e-05,2]
[335599575,1724358290430,153.41,7.164e-05,2]
[335599576,1724358324841,737.6,9.927e-05,2]
[335599583,1724358445288,547.93978231,0.00010009,2]
[335599598,1724358566879,174.93,8.219e-05,2]
[335599599,1724358571445,724.95498779,0.00010009,2]
[335599601,1724358588723,188.31,7.905e-05,2]
[335599602,1724358596784,255.39001683,0.00010009,2]
[335599603,1724358598310,195.88,9.882e-05,2]
[335599612,1724358631706,-365.80180037,0.00010026,2]
[335599613,1724358631715,-169.03007087,0.00010026,2]
[335599614,1724358631767,-462.53216332,0.00010026,2]
[335599615,1724358631778,-1093.43776581,0.00010026,2]
[335599616,1724358631788,-5403.79429818,0.00010026,2]
[335599617,1724358631797,-1634.18311431,0.00010026,2]
[335599618,1724358631826,-343.36626588,0.00010026,2]
[335599619,1724358631837,-865.63660897,0.00010026,2]
[335599620,1724358631847,-546.554705,0.00010026,2]
[335599621,1724358631856,-31.49413753,0.00010026,2]
[335599622,1724358631886,-123.50586247,0.00010026,2]
[335599623,1724358631895,-300.0,0.00010096,2]
[335599624,1724358631905,-633.30584726,0.00010097,2]
[335599625,1724358631915,-675.17658669,0.00010097,2]
[335599626,1724358631924,-891.63165293,0.00010097,2]
[335599627,1724358631933,-155.18237905,0.00010097,2]
[335599628,1724358631942,-115.7792405,0.00010097,2]
[335599631,1724358637715,-39.30577728,0.00010097,2]
[335599632,1724358637726,-203.56323821,0.00010097,2]
[335599633,1724358637737,-215.23279799,0.00010097,2]
[335599634,1724358637747,-24822.0,0.00010403,2]
[335599635,1724358637756,-150.0,0.0001047,2]
[335599636,1724358637766,-174.93,0.00010471,2]
[335599637,1724358637775,-155.0,0.00010471,2]
[335599638,1724358637786,-309.39614277,0.00010471,2]
[335599639,1724358637796,-155.32584308,0.00010471,2]
[335599640,1724358637806,-155.0,0.00010471,2]
[335599641,1724358637818,-155.0,0.00010471,2]
[335599642,1724358637827,-159.60847032,0.00010471,2]
[335599643,1724358637836,-305.51506859,0.00010471,2]
[335599644,1724358637845,-155.0,0.00010471,2]
[335599645,1724358637855,-219.07389839,0.00010471,2]
[335599646,1724358637863,-155.0,0.00010505,2]
[335599647,1724358637874,-155.0,0.00010505,2]
[335599648,1724358637883,-155.0,0.00010505,2]
[335599649,1724358637893,-160.0,0.00010505,2]
[335599650,1724358637902,-236.34424982,0.00010505,2]
[335599651,1724358637911,-187.62268566,0.00010505,2]
[335599652,1724358637934,-192.70472975,0.00010505,2]
[335599653,1724358637943,-523.39091194,0.00010505,2]
[335599654,1724358637952,-155.0,0.00010505,2]
[335599655,1724358637961,-155.0,0.00010505,2]
[335599656,1724358637970,-981.26553955,0.00010546,2]
[335599657,1724358638014,-3592.51446045,0.00010546,2]
[335599658,1724358638023,-357.71830702,0.00010566,2]
[335599659,1724358638032,-649.14803257,0.00010566,2]
[335599660,1724358638042,-155.0,0.00010566,2]
[335599661,1724358638051,-160.470017,0.00010665,2]
[335599662,1724358638059,-1525.6402,0.000107,2]
[335599663,1724358638068,-155.0,0.00010713,2]
[335599664,1724358638077,-241.97615057,0.00010713,2]
[335599665,1724358638086,-155.0,0.00010713,2]
[335599666,1724358638095,-1860.7009197,0.0001079,2]
[335599667,1724358638104,-500.0,0.00010799,2]
[335599668,1724358638113,-500.0,0.00010799,2]
[335599670,1724358638123,-500.0,0.00010799,2]
[335599672,1724358638131,-500.0,0.00010799,2]
[335599673,1724358638140,-610.25074238,0.00010799,2]
[335599675,1724358638149,-500.0,0.00010799,2]
[335599677,1724358638161,-500.0,0.00010799,2]
[335599679,1724358638170,-500.0,0.00010799,2]
[335599681,1724358638179,-500.0,0.00010799,2]
[335599682,1724358638188,-500.0,0.00010799,2]
[335599684,1724358638198,-500.0,0.00010799,2]
[335599686,1724358638208,-527.4,0.00010799,2]
[335599688,1724358638216,-527.4,0.00010799,2]
[335599689,1724358638226,-500.0,0.00010799,2]
[335599691,1724358638236,-500.0,0.00010799,2]
[335599693,1724358638246,-1200.781944,0.000108,2]
[335599694,1724358638255,-150.0,0.000108,2]
[335599696,1724358638264,-150.0,0.000108,2]
[335599698,1724358638274,-426.43,0.000108,2]
[335599699,1724358638283,-150.0,0.000108,2]
[335599700,1724358638291,-421.47,0.000108,2]
[335599701,1724358638301,-920.88,0.000108,2]
[335599702,1724358638310,-150.69,0.000108,2]
[335599703,1724358638320,-150.0,0.000108,2]
[335599704,1724358638330,-150.0,0.000108,2]
[335599705,1724358638339,-301.05,0.000108,2]
[335599706,1724358638349,-300.0,0.000108,2]
[335599707,1724358638358,-418.65,0.000108,2]
[335599708,1724358638367,-421.47,0.000108,2]
[335599709,1724358638376,-150.0,0.000108,2]
[335599710,1724358638385,-852.56,0.000108,2]
[335599711,1724358638394,-531.53,0.000108,2]
[335599712,1724358638403,-287.2,0.000108,2]
[335599713,1724358638412,-150.0,0.000108,2]
[335599714,1724358638421,-421.47,0.000108,2]
[335599715,1724358638430,-1059.87,0.000108,2]
[335599716,1724358638439,-150.0,0.000108,2]
[335599717,1724358638448,-823.41,0.000108,2]
[335599718,1724358638457,-150.0,0.000108,2]
[335599719,1724358638466,-426.83,0.000108,2]
[335599720,1724358638475,-426.83,0.000108,2]
[335599721,1724358638484,-1145.78,0.000108,2]
[335599722,1724358638494,-531.53,0.000108,2]
[335599723,1724358638502,-853.5,0.000108,2]
[335599724,1724358638511,-150.0,0.000108,2]
[335599725,1724358638520,-3873.21,0.000108,2]
[335599726,1724358638529,-793.58,0.000108,2]
[335599727,1724358638539,-1129.1661,0.00010889,2]
[335599728,1724358638547,-322.94675217,0.00010893,2]
[335599729,1724358638556,-8253.8549,0.00010899,2]
[335599730,1724358638565,-1397.0818,0.00010899,2]
[335599731,1724358638574,-3307.527,0.00010899,2]
[335599732,1724358638583,-7585.15028467,0.00010899,2]
[335599733,1724358638592,-7585.15028462,0.00010899,2]
[335599734,1724358638601,-7585.15028462,0.00010899,2]
[335599735,1724358638610,-7585.15028462,0.00010899,2]
[335599736,1724358638619,-7585.15028462,0.00010899,2]
[335599737,1724358638628,-7585.15028462,0.00010899,2]
[335599738,1724358638637,-7585.15028462,0.00010899,2]
[335599739,1724358638646,-7585.15028462,0.00010899,2]
[335599740,1724358638655,-4052.92938474,0.00010899,2]
[335599741,1724358638664,-7585.15028462,0.00010899,2]
[335599742,1724358638673,-150.0,0.000109,2]
[335599743,1724358638682,-356.9,0.000109,2]
[335599744,1724358638691,-150.39,0.000109,2]
[335599745,1724358638701,-300.0,0.000109,2]
[335599746,1724358638710,-531.53,0.000109,2]
[335599747,1724358638719,-150.0,0.000109,2]
[335599748,1724358638728,-531.53,0.000109,2]
[335599749,1724358638738,-426.63,0.000109,2]
[335599750,1724358638747,-150.0,0.000109,2]
[335599751,1724358638756,-530.99,0.000109,2]
[335599752,1724358638765,-426.83,0.000109,2]
[335599753,1724358638774,-150.0,0.000109,2]
[335599754,1724358638783,-426.83,0.000109,2]
[335599755,1724358638791,-150.0,0.000109,2]
[335599756,1724358638800,-150.0,0.000109,2]
[335599757,1724358638809,-178.79,0.000109,2]
[335599758,1724358638818,-7585.15028462,0.000109,2]
[335599759,1724358638828,-842.8,0.000109,2]
[335599760,1724358638837,-150.0,0.000109,2]
[335599761,1724358638847,-1626.21,0.000109,2]
[335599762,1724358638856,-150.0,0.000109,2]
[335599763,1724358638865,-162.63,0.000109,2]
[335599764,1724358638874,-150.0,0.000109,2]
[335599765,1724358638883,-302.69,0.000109,2]
[335599766,1724358638892,-150.0,0.000109,2]
[335599767,1724358638901,-150.0,0.000109,2]
[335599768,1724358638910,-150.0,0.000109,2]
[335599769,1724358638919,-1000.0,0.000109,2]
[335599770,1724358638928,-173.5900964,0.000109,2]
[335599771,1724358638937,-190.64,0.00010959,2]
[335599772,1724358638946,-250.0,0.00010959,2]
[335599773,1724358638955,-318.93358394,0.00010979,2]
[335599774,1724358638965,-150.6,0.0001098,2]
[335599775,1724358638974,-557.0,0.00010986,2]
[335599776,1724358638983,-150.6,0.00010989,2]
[335599777,1724358638992,-150.6,0.00010989,2]
[335599778,1724358639000,-500.0,0.00010989,2]
[335599779,1724358639010,-500.0,0.00010989,2]
[335599780,1724358639021,-500.0,0.00010989,2]
[335599781,1724358639031,-500.0,0.00010989,2]
[335599782,1724358639043,-500.0,0.00010989,2]
[335599783,1724358639054,-527.4,0.00010989,2]
[335599784,1724358639064,-500.0,0.00010989,2]
[335599785,1724358639073,-500.0,0.00010989,2]
[335599786,1724358639082,-159.23487376,0.00010989,2]
[335599787,1724358639091,-348305.56270559,0.0001099,4]
[335599788,1724358639101,-500.0,0.00010994,2]
[335599789,1724358639110,-193.87755988,0.00010996,2]
[335599790,1724358639120,-387.75511976,0.00010997,2]
[335599791,1724358639129,-500.0,0.00010998,2]
[335599792,1724358639139,-500.0,0.00010998,2]
[335599793,1724358639148,-500.0,0.00010998,2]
[335599794,1724358639162,-500.0,0.00010998,2]
[335599795,1724358639171,-486.69921639,0.00010998,2]
[335599796,1724358639180,-500.0,0.00010998,2]
[335599797,1724358639189,-500.0,0.00010998,2]
[335599798,1724358639198,-500.0,0.00010998,2]
[335599799,1724358639207,-500.0,0.00010998,2]
[335599800,1724358639216,-500.0,0.00010998,2]
[335599801,1724358639225,-500.0,0.00010998,2]
[335599802,1724358639234,-500.0,0.00010998,2]
[335599803,1724358639244,-527.4,0.00010998,2]
[335599804,1724358639253,-527.4,0.00010998,2]
[335599805,1724358639262,-500.0,0.00010998,2]
[335599806,1724358639271,-500.0,0.00010998,2]
[335599807,1724358639280,-500.0,0.00010998,2]
[335599808,1724358639289,-500.0,0.00010998,2]
[335599809,1724358639298,-500.0,0.00010998,2]
[335599810,1724358639307,-500.0,0.00010998,2]
[335599811,1724358639316,-500.0,0.00010998,2]
[335599812,1724358639325,-500.0,0.00010998,2]
[335599813,1724358639334,-500.0,0.00010998,2]
[335599814,1724358639343,-500.0,0.00010998,2]
[335599815,1724358639352,-500.0,0.00010998,2]
[335599816,1724358639361,-500.0,0.00010998,2]
[335599817,1724358639370,-500.0,0.00010998,2]
[335599818,1724358639379,-7536.34774839,0.00010999,2]
[335599819,1724358639389,-10149.89,0.00010999,2]
[335599820,1724358639398,-10149.89,0.00010999,2]
[335599821,1724358639407,-10149.89,0.00010999,2]
[335599822,1724358639416,-10149.89,0.00010999,2]
[335599823,1724358639425,-10149.89,0.00010999,2]
[335599824,1724358639435,-10149.89,0.00010999,2]
[335599825,1724358639445,-10149.89,0.00010999,2]
[335599826,1724358639455,-10149.89,0.00010999,2]
[335599827,1724358639465,-10149.89,0.00010999,2]
[335599828,1724358639474,-10149.93,0.00010999,2]
[335599829,1724358639483,-500.0,0.00010999,2]
[335599830,1724358639492,-500.0,0.00010999,2]
[335599831,1724358639501,-221.57969995,0.00010999,2]
[335599832,1724358639511,-500.0,0.00010999,2]
[335599833,1724358639520,-500.0,0.00010999,2]
[335599834,1724358639529,-500.0,0.00010999,2]
[335599835,1724358639538,-500.0,0.00010999,2]
[335599836,1724358639546,-500.0,0.00010999,2]
[335599837,1724358639555,-500.0,0.00010999,2]
[335599838,1724358639564,-500.0,0.00010999,2]
[335599839,1724358639573,-500.0,0.00010999,2]
[335599840,1724358639582,-500.0,0.00010999,2]
[335599841,1724358639591,-500.0,0.00010999,2]
[335599842,1724358639600,-500.0,0.00010999,2]
[335599843,1724358639609,-500.0,0.00010999,2]
[335599844,1724358639618,-500.0,0.00010999,2]
[335599845,1724358639628,-500.0,0.00010999,2]
[335599846,1724358639638,-500.0,0.00010999,2]
[335599847,1724358639647,-500.0,0.00010999,2]
[335599848,1724358639658,-500.0,0.00010999,2]
[335599849,1724358639667,-500.0,0.00010999,2]
[335599850,1724358639676,-500.0,0.00010999,2]
[335599851,1724358639685,-500.0,0.00010999,2]
[335599852,1724358639694,-500.0,0.00010999,2]
[335599853,1724358639703,-500.0,0.00010999,2]
[335599854,1724358639713,-626.28,0.00010999,2]
[335599855,1724358639722,-500.0,0.00010999,2]
[335599856,1724358639731,-500.0,0.00010999,2]
[335599857,1724358639741,-500.0,0.00010999,2]
[335599858,1724358639750,-500.0,0.00010999,2]
[335599859,1724358639759,-500.0,0.00010999,2]
[335599860,1724358639768,-500.0,0.00010999,2]
[335599861,1724358639777,-500.0,0.00010999,2]
[335599862,1724358639786,-500.0,0.00010999,2]
[335599863,1724358639795,-500.0,0.00010999,2]
[335599864,1724358639804,-150.5,0.00010999,2]
[335599865,1724358639813,-500.0,0.00010999,2]
[335599866,1724358639822,-500.0,0.00010999,2]
[335599867,1724358639831,-500.0,0.00010999,2]
[335599868,1724358639839,-500.0,0.00010999,2]
[335599869,1724358639848,-500.0,0.00010999,2]
[335599870,1724358639858,-500.0,0.00010999,2]
[335599871,1724358639867,-500.0,0.00010999,2]
[335599872,1724358639877,-500.0,0.00010999,2]
[335599873,1724358639887,-595.12,0.00010999,2]
[335599874,1724358639896,-500.0,0.00010999,2]
[335599875,1724358639905,-500.0,0.00010999,2]
[335599876,1724358639914,-500.0,0.00010999,2]
[335599877,1724358639925,-500.0,0.00010999,2]
[335599878,1724358639935,-500.0,0.00010999,2]
[335599879,1724358639945,-500.0,0.00010999,2]
[335599880,1724358639955,-500.0,0.00010999,2]
[335599881,1724358639963,-500.0,0.00010999,2]
[335599882,1724358639972,-408.32,0.00010999,2]
[335599883,1724358639982,-500.0,0.00010999,2]
[335599884,1724358639991,-500.0,0.00010999,2]
[335599885,1724358640000,-500.0,0.00010999,2]
[335599886,1724358640009,-500.0,0.00010999,2]
[335599887,1724358640018,-500.0,0.00010999,2]
[335599888,1724358640028,-500.0,0.00010999,2]
[335599889,1724358640039,-500.0,0.00010999,2]
[335599890,1724358640050,-497.82,0.00010999,2]
[335599891,1724358640060,-500.0,0.00010999,2]
[335599892,1724358640070,-500.0,0.00010999,2]
[335599893,1724358640079,-500.0,0.00010999,2]
[335599894,1724358640087,-334.0,0.00010999,2]
[335599895,1724358640096,-500.0,0.00010999,2]
[335599896,1724358640105,-500.0,0.00010999,2]
[335599897,1724358640114,-500.0,0.00010999,2]
[335599898,1724358640123,-500.0,0.00010999,2]
[335599899,1724358640133,-500.0,0.00010999,2]
[335599900,1724358640142,-500.0,0.00010999,2]
[335599901,1724358640152,-500.0,0.00010999,2]
[335599902,1724358640166,-500.0,0.00010999,2]
[335599903,1724358640175,-500.0,0.00010999,2]
[335599904,1724358640184,-500.0,0.00010999,2]
[335599905,1724358640193,-500.0,0.00010999,2]
[335599906,1724358640202,-500.0,0.00010999,2]
[335599907,1724358640211,-500.0,0.00010999,2]
[335599908,1724358640220,-500.0,0.00010999,2]
[335599909,1724358640229,-500.0,0.00010999,2]
[335599910,1724358640240,-500.0,0.00010999,2]
[335599911,1724358640250,-500.0,0.00010999,2]
[335599912,1724358640259,-556.2,0.00010999,2]
[335599913,1724358640269,-500.0,0.00010999,2]
[335599914,1724358640278,-500.0,0.00010999,2]
[335599915,1724358640287,-500.0,0.00010999,2]
[335599916,1724358640296,-481.05260777,0.00010999,2]
[335599917,1724358640305,-500.0,0.00010999,2]
[335599918,1724358640314,-500.0,0.00010999,2]
[335599919,1724358640323,-500.0,0.00010999,2]
[335599920,1724358640332,-500.0,0.00010999,2]
[335599921,1724358640340,-500.0,0.00010999,2]
[335599922,1724358640349,-500.0,0.00010999,2]
[335599923,1724358640358,-500.0,0.00010999,2]
[335599924,1724358640367,-500.0,0.00010999,2]
[335599925,1724358640376,-500.0,0.00010999,2]
[335599926,1724358640385,-500.0,0.00010999,2]
[335599927,1724358640394,-500.0,0.00010999,2]
[335599928,1724358640403,-252.17,0.00010999,2]
[335599929,1724358640411,-500.0,0.00010999,2]
[335599930,1724358640420,-500.0,0.00010999,2]
[335599931,1724358640429,-500.0,0.00010999,2]
[335599932,1724358640439,-500.0,0.00010999,2]
[335599933,1724358640447,-500.0,0.00010999,2]
[335599934,1724358640456,-500.0,0.00010999,2]
[335599935,1724358640465,-500.0,0.00010999,2]
[335599936,1724358640474,-503.75836627,0.00010999,2]
[335599937,1724358640483,-719.91,0.00010999,2]
[335599938,1724358640493,-719.91,0.00010999,2]
[335599939,1724358640501,-719.91,0.00010999,2]
[335599940,1724358640510,-719.91,0.00010999,2]
[335599941,1724358640520,-719.91,0.00010999,2]
[335599942,1724358640529,-719.91,0.00010999,2]
[335599943,1724358640538,-719.91,0.00010999,2]
[335599944,1724358640547,-719.91,0.00010999,2]
[335599945,1724358640556,-694.37,0.00010999,2]
[335599946,1724358640565,-719.91,0.00010999,2]
[335599947,1724358640575,-694.37,0.00010999,2]
[335599948,1724358640584,-719.91,0.00010999,2]
[335599949,1724358640593,-694.37,0.00010999,2]
[335599950,1724358640602,-719.91,0.00010999,2]
[335599951,1724358640611,-694.37,0.00010999,2]
[335599952,1724358640621,-719.91,0.00010999,2]
[335599953,1724358640630,-694.37,0.00010999,2]
[335599954,1724358640640,-719.91,0.00010999,2]
[335599955,1724358640649,-694.37,0.00010999,2]
[335599956,1724358640657,-719.91,0.00010999,2]
[335599957,1724358640666,-694.37,0.00010999,2]
[335599958,1724358640675,-719.91,0.00010999,2]
[335599959,1724358640684,-694.37,0.00010999,2]
[335599960,1724358640693,-719.91,0.00010999,2]
[335599961,1724358640702,-694.37,0.00010999,2]
[335599962,1724358640712,-719.91,0.00010999,2]
[335599963,1724358640721,-694.37,0.00010999,2]
[335599964,1724358640730,-719.91,0.00010999,2]
[335599965,1724358640740,-694.37,0.00010999,2]
[335599966,1724358640749,-719.91,0.00010999,2]
[335599967,1724358640758,-694.37,0.00010999,2]
[335599968,1724358640767,-719.91,0.00010999,2]
[335599969,1724358640776,-719.91,0.00010999,2]
[335599970,1724358640786,-694.37,0.00010999,2]
[335599971,1724358640798,-720.1,0.00010999,2]
[335599972,1724358640809,-694.37,0.00010999,2]
[335599973,1724358640819,-694.37,0.00010999,2]
[335599974,1724358640829,-694.37,0.00010999,2]
[335599975,1724358640839,-694.37,0.00010999,2]
[335599976,1724358640847,-694.37,0.00010999,2]
[335599977,1724358640856,-694.37,0.00010999,2]
[335599978,1724358640866,-702.64,0.00010999,2]
[335599979,1724358640875,-694.37,0.00010999,2]
[335599980,1724358640884,-702.64,0.00010999,2]
[335599981,1724358640893,-694.37,0.00010999,2]
[335599982,1724358640903,-702.64,0.00010999,2]
[335599983,1724358641068,-694.52,0.00010999,2]
[335599984,1724358641080,-702.64,0.00010999,2]
[335599985,1724358641089,-702.64,0.00010999,2]
[335599986,1724358641100,-702.64,0.00010999,2]
[335599987,1724358641109,-702.64,0.00010999,2]
[335599988,1724358641118,-702.64,0.00010999,2]
[335599989,1724358641129,-702.64,0.00010999,2]
[335599990,1724358641138,-702.64,0.00010999,2]
[335599991,1724358641147,-702.64,0.00010999,2]
[335599992,1724358641157,-702.64,0.00010999,2]
[335599993,1724358641170,-702.64,0.00010999,2]
[335599994,1724358641180,-702.64,0.00010999,2]
[335599995,1724358641189,-702.64,0.00010999,2]
[335599996,1724358641198,-702.64,0.00010999,2]
[335599997,1724358641209,-702.64,0.00010999,2]
[335599998,1724358641218,-702.64,0.00010999,2]
[335599999,1724358641228,-702.64,0.00010999,2]
[335600000,1724358641238,-702.64,0.00010999,2]
[335600001,1724358641255,-702.64,0.00010999,2]
[335600002,1724358641266,-702.79,0.00010999,2]
[335600003,1724358641276,-500.0,0.00010999,2]
[335600004,1724358641286,-500.0,0.00010999,2]
[335600005,1724358641295,-500.0,0.00010999,2]
[335600006,1724358641305,-500.0,0.00010999,2]
[335600007,1724358641315,-500.0,0.00010999,2]
[335600008,1724358641324,-500.0,0.00010999,2]
[335600009,1724358641334,-500.0,0.00010999,2]
[335600010,1724358641343,-500.0,0.00010999,2]
[335600011,1724358641352,-500.0,0.00010999,2]
[335600012,1724358641362,-500.0,0.00010999,2]
[335600013,1724358641371,-500.0,0.00010999,2]
[335600014,1724358641380,-500.0,0.00010999,2]
[335600015,1724358641389,-500.0,0.00010999,2]
[335600016,1724358641399,-500.0,0.00010999,2]
[335600017,1724358641408,-500.0,0.00010999,2]
[335600018,1724358641417,-500.0,0.00010999,2]
[335600019,1724358641426,-500.0,0.00010999,2]
[335600020,1724358641438,-500.0,0.00010999,2]
[335600021,1724358641448,-500.0,0.00010999,2]
[335600022,1724358641457,-500.0,0.00010999,2]
[335600023,1724358641466,-462.61122293,0.00010999,2]
[335600024,1724358641475,-500.0,0.00010999,2]
[335600025,1724358641485,-500.0,0.00010999,2]
[335600026,1724358641501,-500.0,0.00010999,2]